fUSD/lending_fUSD_20240913
["ID","MTS","AMOUNT","RATE_DAILY","PERIOD"]
[337918121,1726205453749,-1177.34,0.00013509,2]
[337918123,1726205453759,-509.42,0.00013509,2]
[337918125,1726205453768,-942.17,0.00013509,2]
[337918127,1726205453777,-5015.69,0.00013509,2]
[337918129,1726205453787,-885.91,0.00013509,2]
[337918131,1726205453795,-500.0,0.00013509,2]
[337918133,1726205453805,-500.0,0.00013509,2]
[337918135,1726205453814,-1255.67662347,0.00013509,2]
[337918138,1726205453836,-254.25,0.00013509,2]
[337918142,1726205453867,-656.66,0.00013509,2]
[337918144,1726205453879,-1023.25,0.00013509,2]
[337918148,1726205453905,-5627.13337653,0.00013509,2]
[337918150,1726205453915,-8943.71,0.00013509,2]
[337918152,1726205453924,-1946.96,0.00013509,2]
[337918154,1726205453934,-932.14,0.00013509,2]
[337918156,1726205453943,-2660.6,0.00013509,2]
[337918158,1726205453953,-6057.59,0.00013509,2]
[337918160,1726205453962,-1630.93,0.00013509,2]
[337918162,1726205453971,-500.0,0.00013509,2]
[337918164,1726205453981,-1513.8,0.00013509,2]
[337918166,1726205453991,-1087.61,0.00013509,2]
[337918168,1726205454000,-13847.96,0.00013509,2]
[337918170,1726205454009,-1509.93,0.00013509,2]
[337918172,1726205454018,-500.0,0.00013509,2]
[337918174,1726205454028,-851.6,0.00013509,2]
[337918176,1726205454037,-1127.79,0.00013509,2]
[337918178,1726205454048,-3465.9,0.00013509,2]
[337918180,1726205454059,-4059.75,0.00013509,2]
[337918182,1726205454070,-150.0,0.0001351,2]
[337918184,1726205454080,-4946.16754667,0.00013511,2]
[337918186,1726205454090,-500.0,0.00013511,2]
[337918188,1726205454100,-500.0,0.00013511,2]
[337918190,1726205454113,-599.81,0.00013511,2]
[337918192,1726205454122,-500.0,0.00013511,2]
[337918194,1726205454132,-552.19,0.00013511,2]
[337918196,1726205454142,-500.0,0.00013511,2]
[337918198,1726205454151,-500.0,0.00013511,2]
[337918200,1726205454161,-500.0,0.00013511,2]
[337918202,1726205454171,-2063.87,0.00013511,2]
[337918204,1726205454181,-775.49,0.00013511,2]
[337918206,1726205454191,-500.0,0.00013511,2]
[337918208,1726205454201,-500.0,0.00013511,2]
[337918210,1726205454210,-1189.85,0.00013511,2]
[337918212,1726205454220,-2184.62,0.00013511,2]
[337918214,1726205454230,-1128.96,0.00013511,2]
[337918216,1726205454239,-840.44,0.00013511,2]
[337918218,1726205454249,-650.11,0.00013511,2]
[337918220,1726205454258,-500.0,0.00013511,2]
[337918222,1726205454267,-837.28,0.00013511,2]
[337918224,1726205454277,-840.9,0.00013511,2]
[337918226,1726205454287,-500.0,0.00013511,2]
[337918228,1726205454296,-500.0,0.00013511,2]
[337918229,1726205454306,-2588.11,0.00013511,2]
[337918231,1726205454315,-656.33,0.00013511,2]
[337918233,1726205454324,-1882.55,0.00013511,2]
[337918235,1726205454334,-2612.84,0.00013511,2]
[337918236,1726205454344,-500.0,0.00013511,2]
[337918237,1726205454353,-528.24,0.00013511,2]
[337918238,1726205454363,-2373.73,0.00013511,2]
[337918239,1726205454372,-500.0,0.00013511,2]
[337918240,1726205454382,-2433.8,0.00013511,2]
[337918241,1726205454392,-500.0,0.00013511,2]
[337918242,1726205454402,-500.0,0.00013511,2]
[337918243,1726205454412,-2175.52,0.00013511,2]
[337918244,1726205454421,-3237.78,0.00013511,2]
[337918245,1726205454431,-642.34,0.00013511,2]
[337918246,1726205454441,-1943.83,0.00013511,2]
[337918247,1726205454450,-500.0,0.00013511,2]
[337918248,1726205454460,-1903.93,0.00013511,2]
[337918250,1726205454470,-976.82,0.00013511,2]
[337918252,1726205454479,-500.0,0.00013511,2]
[337918254,1726205454489,-677.23,0.00013511,2]
[337918256,1726205454499,-500.0,0.00013511,2]
[337918258,1726205454510,-3336.02,0.00013511,2]
[337918260,1726205454520,-1064.91,0.00013511,2]
[337918261,1726205454529,-3819.14,0.00013511,2]
[337918263,1726205454539,-4840.13,0.00013511,2]
[337918265,1726205454548,-988.54,0.00013511,2]
[337918267,1726205454558,-3194.99,0.00013511,2]
[337918269,1726205454567,-3785.99,0.00013511,2]
[337918271,1726205454576,-1020.09,0.00013511,2]
[337918273,1726205454588,-3639.15,0.00013511,2]
[337918275,1726205454597,-4129.0,0.00013511,2]
[337918277,1726205454607,-704.84,0.00013511,2]
[337918279,1726205454616,-1379.11,0.00013511,2]
[337918281,1726205454628,-2409.35,0.00013511,2]
[337918283,1726205454637,-4680.98,0.00013511,2]
[337918285,1726205454647,-1222.6153613,0.00013512,2]
[337918287,1726205454656,-3084.9127325,0.00013512,2]
[337918289,1726205454666,-4303.601581,0.00013512,2]
[337918291,1726205454677,-19393.9809186,0.00013512,2]
[337918293,1726205454686,-2300.9666099,0.00013512,2]
[337918295,1726205454695,-6257.2217968,0.00013512,2]
[337918297,1726205454705,-1023.5223319,0.00013512,2]
[337918299,1726205454714,-848.666077,0.00013512,2]
[337918301,1726205454723,-1768.6633523,0.00013512,2]
[337918303,1726205454732,-778.07,0.00013512,2]
[337918305,1726205454741,-277.41,0.00013521,2]
[337918307,1726205454750,-172.7850343,0.00013522,2]
[337918310,1726205454774,-7162.9071334,0.00013522,2]
[337918312,1726205454784,-55706.01107995,0.00013539,2]
[337918314,1726205454793,-153.61647769,0.00013541,2]
[337918316,1726205454803,-319.92,0.00013588,2]
[337918318,1726205454811,-51.57479009,0.00013623,2]
[337918320,1726205454824,-1943.34926874,0.00013623,2]
[337918322,1726205454835,-671.42,0.00013677,2]
[337918324,1726205454845,-500.0,0.00013699,2]
[337918326,1726205454853,-500.0,0.00013699,2]
[337918328,1726205454863,-500.0,0.00013699,2]
[337918330,1726205454873,-500.0,0.00013699,2]
[337918332,1726205454883,-302.03308,0.00013699,2]
[337918334,1726205454892,-1757.15,0.00013699,2]
[337918336,1726205454902,-200.0,0.00013699,2]
[337918338,1726205454912,-182.778499,0.00013699,2]
[337918340,1726205454921,-123.33683122,0.00013699,2]
[337918342,1726205454932,-59.44166778,0.00013699,2]
[337918344,1726205454942,-182.778499,0.00013699,2]
[337918345,1726205454952,-500.0,0.00013699,2]
[337918348,1726205454962,-151.0,0.00013699,2]
[337918349,1726205454971,-151.0,0.00013699,2]
[337918351,1726205454981,-151.0,0.00013699,2]
[337918354,1726205454991,-151.0,0.00013699,2]
[337918356,1726205455001,-151.0,0.00013699,2]
[337918357,1726205455010,-151.0,0.00013699,2]
[337918359,1726205455020,-151.0,0.00013699,2]
[337918361,1726205455030,-151.0,0.00013699,2]
[337918363,1726205455040,-151.0,0.00013699,2]
[337918365,1726205455050,-151.0,0.00013699,2]
[337918367,1726205455059,-151.0,0.00013699,2]
[337918369,1726205455069,-151.0,0.00013699,2]
[337918371,1726205455078,-2341.15,0.00013699,2]
[337918373,1726205455087,-431.01,0.00013699,2]
[337918375,1726205455098,-2751.0,0.00013699,2]
[337918377,1726205455108,-203627.14,0.00013699,2]
[337918379,1726205455117,-151.0,0.00013699,2]
[337918381,1726205455127,-151.0,0.00013699,2]
[337918383,1726205455138,-151.0,0.00013699,2]
[337918385,1726205455147,-151.0,0.00013699,2]
[337918387,1726205455157,-295.158388,0.00013699,2]
[337918389,1726205455166,-150.0,0.00013699,2]
[337918391,1726205455175,-182.778499,0.00013699,2]
[337918393,1726205455185,-1250.0,0.000137,2]
[337918394,1726205455194,-1438.0,0.000137,2]
[337918396,1726205455203,-55706.01107995,0.00013766,2]
[337918398,1726205455213,-151.0,0.00013767,2]
[337918400,1726205455223,-151.0,0.00013767,2]
[337918402,1726205455232,-286.0,0.00013767,2]
[337918404,1726205455241,-6773.1230819,0.00013775,2]
[337918406,1726205455251,-1207.910773,0.00013775,2]
[337918408,1726205455260,-3047.8099993,0.00013775,2]
[337918410,1726205455270,-4397.2607298,0.00013775,2]
[337918412,1726205455280,-19816.0515282,0.00013775,2]
[337918414,1726205455289,-2460.5924559,0.00013775,2]
[337918416,1726205455299,-6691.3064631,0.00013775,2]
[337918418,1726205455309,-1063.815654,0.00013775,2]
[337918420,1726205455318,-882.0757785,0.00013775,2]
[337918422,1726205455328,-1659.6291913,0.00013775,2]
[337918424,1726205455337,-3363.15,0.0001378,2]
[337918426,1726205455346,-3870.08,0.0001378,2]
[337918428,1726205455355,-2554.23,0.0001378,2]
[337918430,1726205455365,-3026.99,0.0001378,2]
[337918432,1726205455374,-2546.12,0.0001378,2]
[337918434,1726205455384,-927.69,0.0001378,2]
[337918436,1726205455393,-1764.76,0.0001378,2]
[337918437,1726205455403,-580.69,0.0001378,2]
[337918439,1726205455413,-4802.77,0.0001378,2]
[337918441,1726205455422,-500.0,0.0001378,2]
[337918443,1726205455432,-7818.91,0.00013781,2]
[337918445,1726205455442,-888.98,0.00013781,2]
[337918447,1726205455451,-2783.65,0.00013781,2]
[337918449,1726205455461,-3482.05,0.00013781,2]
[337918451,1726205455471,-500.0,0.00013781,2]
[337918453,1726205455481,-1717.3,0.00013781,2]
[337918455,1726205455490,-753.35,0.00013781,2]
[337918457,1726205455499,-3094.4,0.00013781,2]
[337918459,1726205455509,-2059.12,0.00013781,2]
[337918461,1726205455518,-5007.1,0.00013781,2]
[337918463,1726205455527,-1008.82,0.00013781,2]
[337918465,1726205455537,-2371.24,0.00013781,2]
[337918467,1726205455547,-2949.72,0.00013781,2]
[337918468,1726205455556,-2791.0,0.00013781,2]
[337918477,1726205455639,-5008.21,0.00013781,2]
[337918479,1726205455650,-1615.56,0.00013781,2]
[337918481,1726205455659,-3451.77,0.00013781,2]
[337918483,1726205455669,-872.98,0.00013781,2]
[337918485,1726205455679,-3210.08,0.00013781,2]
[337918487,1726205455689,-2409.33,0.00013781,2]
[337918489,1726205455699,-1274.11,0.00013781,2]
[337918492,1726205455709,-18001.02,0.00013781,2]
[337918493,1726205455718,-5487.11,0.00013781,2]
[337918495,1726205455728,-3215.28,0.00013781,2]
[337918497,1726205455739,-4401.62,0.00013781,2]
[337918499,1726205455749,-2669.52,0.00013781,2]
[337918501,1726205455758,-47412.27,0.00013781,2]
[337918503,1726205455768,-10338.58,0.00013781,2]
[337918505,1726205455777,-7698.66,0.00013781,2]
[337918507,1726205455788,-2828.54,0.00013781,2]
[337918509,1726205455797,-3417.49,0.00013781,2]
[337918511,1726205455806,-4382.1,0.00013781,2]
[337918513,1726205455816,-3915.56,0.00013781,2]
[337918515,1726205455827,-9979.29,0.00013781,2]
[337918517,1726205455836,-1648.69,0.00013781,2]
[337918519,1726205455846,-11084.07,0.00013781,2]
[337918520,1726205455855,-1496.85,0.00013781,2]
[337918522,1726205455865,-8893.91,0.00013781,2]
[337918524,1726205455875,-2857.53,0.00013781,2]
[337918526,1726205455885,-835.81,0.00013781,2]
[337918528,1726205455895,-832.59,0.00013781,2]
[337918529,1726205455904,-1442.72,0.00013781,2]
[337918531,1726205455914,-7447.01,0.00013781,2]
[337918533,1726205455923,-1172.09,0.00013781,2]
[337918535,1726205455933,-723.13,0.00013781,2]
[337918537,1726205455942,-10637.41,0.00013781,2]
[337918539,1726205455951,-168.46982081,0.00013782,2]
[337918541,1726205455961,-1208.18,0.00013782,2]
[337918543,1726205455971,-2272.44,0.00013782,2]
[337918545,1726205455980,-1195.32,0.00013782,2]
[337918547,1726205455990,-1453.13,0.00013782,2]
[337918549,1726205455999,-500.0,0.00013782,2]
[337918551,1726205456008,-500.0,0.00013782,2]
[337918553,1726205456018,-2699.87,0.00013782,2]
[337918554,1726205456027,-904.06,0.00013782,2]
[337918556,1726205456035,-500.0,0.00013782,2]
[337918558,1726205456046,-726.56,0.00013782,2]
[337918560,1726205456054,-326.09649657,0.00013782,2]
[337918562,1726205456064,-344.2482011,0.00013782,2]
[337918564,1726205456074,-585.42,0.00013782,2]
[337918566,1726205456083,-2716.48,0.00013782,2]
[337918568,1726205456092,-500.0,0.00013782,2]
[337918570,1726205456101,-592.11895689,0.00013782,2]
[337918572,1726205456111,-500.0,0.00013782,2]
[337918573,1726205456120,-3073.34,0.00013782,2]
[337918575,1726205456129,-2207.44,0.00013782,2]
[337918577,1726205456138,-379.97800891,0.00013782,2]
[337918579,1726205456147,-3040.08,0.00013782,2]
[337918581,1726205456157,-661.12,0.00013782,2]
[337918582,1726205456167,-500.0,0.00013782,2]
[337918584,1726205456177,-3067.3,0.00013782,2]
[337918586,1726205456186,-772.39,0.00013782,2]
[337918588,1726205456195,-500.0,0.00013782,2]
[337918590,1726205456204,-1502.66,0.00013782,2]
[337918592,1726205456213,-500.0,0.00013782,2]
[337918594,1726205456223,-631.6,0.00013782,2]
[337918596,1726205456232,-500.0,0.00013782,2]
[337918598,1726205456241,-561.5,0.00013782,2]
[337918600,1726205456251,-500.0,0.00013782,2]
[337918602,1726205456261,-2308.05,0.00013782,2]
[337918604,1726205456270,-500.0,0.00013782,2]
[337918606,1726205456279,-500.0,0.00013782,2]
[337918607,1726205456289,-669.08,0.00013782,2]
[337918609,1726205456298,-500.0,0.00013782,2]
[337918611,1726205456308,-500.0,0.00013782,2]
[337918613,1726205456317,-896.89,0.00013782,2]
[337918615,1726205456326,-500.0,0.00013782,2]
[337918617,1726205456335,-3420.25,0.00013782,2]
[337918619,1726205456346,-1396.39,0.00013782,2]
[337918621,1726205456355,-500.0,0.00013782,2]
[337918623,1726205456365,-1671.19,0.00013782,2]
[337918625,1726205456375,-255.73714428,0.00013782,2]
[337918627,1726205456386,-500.0,0.00013782,2]
[337918629,1726205456395,-413.07456507,0.00013782,2]
[337918631,1726205456404,-3990.02,0.00013782,2]
[337918633,1726205456414,-500.0,0.00013782,2]
[337918635,1726205456424,-500.0,0.00013782,2]
[337918637,1726205456433,-2398.12,0.00013782,2]
[337918639,1726205456444,-621.92661558,0.00013782,2]
[337918641,1726205456454,-500.0,0.00013782,2]
[337918643,1726205456464,-1123.2,0.00013782,2]
[337918645,1726205456473,-500.0,0.00013782,2]
[337918647,1726205456482,-500.0,0.00013782,2]
[337918649,1726205456491,-2495.16,0.00013782,2]
[337918651,1726205456501,-500.0,0.00013782,2]
[337918653,1726205456510,-2704.86,0.00013782,2]
[337918655,1726205456519,-500.0,0.00013782,2]
[337918657,1726205456529,-500.0,0.00013782,2]
[337918659,1726205456538,-500.0,0.00013782,2]
[337918661,1726205456547,-2265.39,0.00013782,2]
[337918662,1726205456557,-500.0,0.00013782,2]
[337918664,1726205456566,-2724.82,0.00013782,2]
[337918666,1726205456575,-1597.27,0.00013782,2]
[337918668,1726205456584,-500.0,0.00013782,2]
[337918670,1726205456594,-1943.63,0.00013782,2]
[337918672,1726205456604,-500.0,0.00013782,2]
[337918674,1726205456614,-577.45,0.00013782,2]
[337918676,1726205456623,-500.0,0.00013782,2]
[337918678,1726205456632,-3283.28,0.00013782,2]
[337918680,1726205456642,-1015.24,0.00013782,2]
[337918682,1726205456651,-500.0,0.00013782,2]
[337918684,1726205456661,-500.0,0.00013782,2]
[337918686,1726205456670,-500.0,0.00013782,2]
[337918688,1726205456679,-1698.17,0.00013782,2]
[337918689,1726205456689,-3216.43,0.00013782,2]
[337918691,1726205456698,-2871.94,0.00013782,2]
[337918693,1726205456708,-1329.17,0.00013782,2]
[337918695,1726205456717,-1424.57,0.00013782,2]
[337918697,1726205456726,-1807.21,0.00013782,2]
[337918699,1726205456736,-2023.63,0.00013782,2]
[337918701,1726205456745,-3904.95,0.00013782,2]
[337918703,1726205456754,-899.06,0.00013782,2]
[337918705,1726205456764,-1454.65,0.00013782,2]
[337918707,1726205456773,-1639.97,0.00013782,2]
[337918709,1726205456783,-1313.19,0.00013782,2]
[337918711,1726205456792,-1235.0,0.00013782,2]
[337918713,1726205456801,-500.0,0.00013782,2]
[337918715,1726205456811,-4171.14716176,0.00013782,2]
[337918718,1726205456828,-3591.63283824,0.00013782,2]
[337918720,1726205456838,-500.0,0.00013782,2]
[337918722,1726205456847,-1203.41,0.00013782,2]
[337918724,1726205456856,-1910.42,0.00013782,2]
[337918726,1726205456866,-2648.64,0.00013782,2]
[337918728,1726205456877,-2801.46,0.00013782,2]
[337918730,1726205456887,-841.79,0.00013782,2]
[337918732,1726205456896,-1094.46,0.00013782,2]
[337918734,1726205456907,-3260.1,0.00013782,2]
[337918736,1726205456917,-500.0,0.00013782,2]
[337918738,1726205456926,-536.14676178,0.00013782,2]
[337918740,1726205456935,-738.0,0.00013782,2]
[337918742,1726205456946,-2941.45,0.00013782,2]
[337918744,1726205456955,-5377.12,0.00013782,2]
[337918746,1726205456964,-1629.94822435,0.00013782,2]
[337918748,1726205456976,-2249.97177565,0.00013782,2]
[337918750,1726205456985,-767.28422435,0.00013782,2]
[337918752,1726205456996,-1728.67577565,0.00013782,2]
[337918754,1726205457006,-1215.72,0.00013782,2]
[337918756,1726205457015,-436.02905835,0.00013782,2]
[337918758,1726205457026,-640.62153501,0.00013782,2]
[337918760,1726205457038,-2690.37940664,0.00013782,2]
[337918762,1726205457047,-1580.99,0.00013782,2]
[337918764,1726205457056,-500.0,0.00013782,2]
[337918766,1726205457065,-4555.18,0.00013782,2]
[337918768,1726205457075,-665.45,0.00013782,2]
[337918770,1726205457084,-5310.95,0.00013782,2]
[337918772,1726205457094,-506.08,0.00013782,2]
[337918774,1726205457103,-1067.47,0.00013782,2]
[337918776,1726205457114,-2301.38,0.00013782,2]
[337918778,1726205457123,-4515.51,0.00013782,2]
[337918780,1726205457132,-21.61103276,0.00013782,2]
[337918782,1726205457148,-1133.10896724,0.00013782,2]
[337918784,1726205457158,-1938.68569401,0.00013782,2]
[337918786,1726205457172,-885.88430599,0.00013782,2]
[337918788,1726205457181,-586.27,0.00013782,2]
[337918790,1726205457191,-715.23,0.00013782,2]
[337918792,1726205457201,-509.35,0.00013782,2]
[337918794,1726205457212,-1144.85,0.00013782,2]
[337918796,1726205457222,-3.21163897,0.00013782,2]
[337918799,1726205457235,-884.16644664,0.00013782,2]
[337918801,1726205457247,-5172.91191439,0.00013782,2]
[337918803,1726205457257,-207.57423415,0.00013782,2]
[337918805,1726205457269,-2014.39426077,0.00013782,2]
[337918807,1726205457280,-311.142,0.00013782,2]
[337918810,1726205457291,-583.86285183,0.00013782,2]
[337918887,1726205458178,-738.1314692,0.00013074,2]
[337918984,1726205459144,-8573.8685308,0.00013074,2]
[337918986,1726205459155,-4745.75665325,0.00013782,2]
[337918988,1726205459166,-500.0,0.00013782,2]
[337918990,1726205459177,-4075.41,0.00013782,2]
[337918992,1726205459188,-893.87,0.00013782,2]
[337918994,1726205459198,-1160.22,0.00013782,2]
[337918996,1726205459208,-500.0,0.00013782,2]
[337918998,1726205459218,-500.0,0.00013782,2]
[337919001,1726205459230,-2580.43,0.00013782,2]
[337919003,1726205459245,-1640.60186136,0.00013782,2]
[337919006,1726205459259,-327.12129972,0.00013782,2]
[337919008,1726205459272,-729.85683892,0.00013782,2]
[337919010,1726205459283,-217.54959886,0.00013782,2]
[337919013,1726205459296,-340.68338463,0.00013782,2]
[337919015,1726205459309,-3087.7847,0.00013782,2]
[337919017,1726205459323,-170.34231651,0.00013782,2]
[337919019,1726205459333,-1274.77368521,0.00013782,2]
[337919022,1726205459347,-4543.37631479,0.00013782,2]
[337919024,1726205459358,-500.0,0.00013782,2]
[337919026,1726205459369,-2461.42,0.00013782,2]
[337919028,1726205459380,-219.87622453,0.00013782,2]
[337919031,1726205459394,-388.75856295,0.00013782,2]
[337919033,1726205459408,-734.08521252,0.00013782,2]
[337919036,1726205459420,-509.85391888,0.00013782,2]
[337919038,1726205459433,-997.62972712,0.00013782,2]
[337919040,1726205459446,-528.85885242,0.00013782,2]
[337919043,1726205459459,-384.34999965,0.00013782,2]
[337919045,1726205459476,-1187.88750193,0.00013782,2]
[337919047,1726205459487,-2998.21,0.00013782,2]
[337919050,1726205459498,-512.04,0.00013782,2]
[337919052,1726205459509,-500.0,0.00013783,2]
[337919054,1726205459520,-500.0,0.00013783,2]
[337919056,1726205459531,-500.0,0.00013783,2]
[337919058,1726205459543,-500.0,0.00013783,2]
[337919060,1726205459554,-2714.43,0.00013783,2]
[337919062,1726205459564,-534.8,0.00013783,2]
[337919064,1726205459575,-1545.01,0.00013783,2]
[337919066,1726205459586,-500.0,0.00013783,2]
[337919068,1726205459597,-500.0,0.00013783,2]
[337919070,1726205459607,-500.0,0.00013783,2]
[337919073,1726205459618,-799.7,0.00013783,2]
[337919075,1726205459628,-486.15803189,0.00013783,2]
[337919077,1726205459642,-1842.50196811,0.00013783,2]
[337919079,1726205459652,-500.0,0.00013783,2]
[337919081,1726205459663,-604.71,0.00013783,2]
[337919083,1726205459674,-500.0,0.00013783,2]
[337919085,1726205459685,-623.33,0.00013783,2]
[337919087,1726205459695,-500.0,0.00013783,2]
[337919090,1726205459706,-500.0,0.00013783,2]
[337919092,1726205459716,-500.0,0.00013783,2]
[337919094,1726205459727,-909.95,0.00013783,2]
[337919096,1726205459738,-597.89,0.00013783,2]
[337919098,1726205459749,-500.0,0.00013783,2]
[337919100,1726205459760,-543.42,0.00013783,2]
[337919102,1726205459771,-536.94,0.00013783,2]
[337919104,1726205459782,-500.0,0.00013783,2]
[337919106,1726205459793,-1314.32,0.00013783,2]
[337919108,1726205459804,-678.42,0.00013783,2]
[337919111,1726205459815,-1646.58,0.00013783,2]
[337919113,1726205459827,-847.34,0.00013783,2]
[337919115,1726205459838,-500.0,0.00013783,2]
[337919117,1726205459849,-500.0,0.00013783,2]
[337919119,1726205459862,-1162.29,0.00013783,2]
[337919121,1726205459874,-1519.69,0.00013783,2]
[337919123,1726205459885,-500.0,0.00013783,2]
[337919125,1726205459896,-500.0,0.00013783,2]
[337919128,1726205459913,-500.0,0.00013783,2]
[337919130,1726205459923,-2782.23,0.00013783,2]
[337919132,1726205459934,-714.92,0.00013783,2]
[337919134,1726205459945,-4066.53,0.00013783,2]
[337919136,1726205459955,-182.778499,0.00013783,2]
[337919138,1726205459966,-500.0,0.00013783,2]
[337919140,1726205459976,-1408.65,0.00013783,2]
[337919142,1726205459986,-600.73,0.00013783,2]
[337919144,1726205459996,-500.0,0.00013783,2]
[337919146,1726205460007,-2521.22,0.00013783,2]
[337919148,1726205460017,-2911.42,0.00013783,2]
[337919149,1726205460028,-880.5,0.00013783,2]
[337919150,1726205460039,-3825.95,0.00013783,2]
[337919151,1726205460049,-573.44,0.00013783,2]
[337919152,1726205460061,-1916.71,0.00013783,2]
[337919153,1726205460072,-3766.31,0.00013783,2]
[337919154,1726205460082,-947.5,0.00013783,2]
[337919155,1726205460093,-500.0,0.00013783,2]
[337919156,1726205460103,-1348.2,0.00013783,2]
[337919157,1726205460116,-2050.25,0.00013783,2]
[337919158,1726205460127,-500.0,0.00013783,2]
[337919160,1726205460138,-5350.84,0.00013783,2]
[337919162,1726205460149,-500.0,0.00013783,2]
[337919164,1726205460159,-588.88,0.00013783,2]
[337919166,1726205460172,-500.0,0.00013783,2]
[337919168,1726205460182,-500.0,0.00013783,2]
[337919170,1726205460193,-1986.39,0.00013783,2]
[337919173,1726205460205,-2274.8,0.00013783,2]
[337919175,1726205460216,-500.0,0.00013783,2]
[337919177,1726205460227,-500.0,0.00013783,2]
[337919179,1726205460238,-500.0,0.00013783,2]
[337919181,1726205460250,-500.0,0.00013783,2]
[337919184,1726205460263,-500.0,0.00013783,2]
[337919186,1726205460273,-2684.31,0.00013783,2]
[337919188,1726205460284,-500.0,0.00013783,2]
[337919190,1726205460294,-500.0,0.00013783,2]
[337919192,1726205460305,-2227.67,0.00013783,2]
[337919194,1726205460316,-1641.66,0.00013783,2]
[337919196,1726205460326,-2613.63,0.00013783,2]
[337919198,1726205460337,-533.85,0.00013783,2]
[337919200,1726205460347,-522.6,0.00013783,2]
[337919202,1726205460358,-2000.67,0.00013783,2]
[337919204,1726205460369,-716.33,0.00013783,2]
[337919206,1726205460380,-500.0,0.00013783,2]
[337919208,1726205460391,-767.88,0.00013783,2]
[337919211,1726205460402,-500.0,0.00013783,2]
[337919213,1726205460412,-1465.42,0.00013783,2]
[337919215,1726205460422,-500.0,0.00013783,2]
[337919217,1726205460433,-500.0,0.00013783,2]
[337919219,1726205460443,-2617.18,0.00013783,2]
[337919221,1726205460454,-1512.93,0.00013783,2]
[337919223,1726205460464,-500.0,0.00013783,2]
[337919225,1726205460475,-2602.3,0.00013783,2]
[337919227,1726205460486,-500.0,0.00013783,2]
[337919230,1726205460497,-524.73,0.00013783,2]
[337919231,1726205460508,-500.0,0.00013783,2]
[337919234,1726205460518,-1099.89,0.00013783,2]
[337919236,1726205460529,-500.0,0.00013783,2]
[337919238,1726205460539,-1932.92,0.00013783,2]
[337919240,1726205460550,-500.0,0.00013783,2]
[337919242,1726205460561,-1894.22,0.00013783,2]
[337919244,1726205460571,-1519.52,0.00013783,2]
[337919246,1726205460582,-900.44,0.00013783,2]
[337919248,1726205460592,-1189.4,0.00013783,2]
[337919250,1726205460603,-546.32,0.00013783,2]
[337919253,1726205460614,-222.70555969,0.00013783,2]
[337919255,1726205460625,-1342.94,0.00013783,2]
[337919257,1726205460635,-2107.07,0.00013783,2]
[337919259,1726205460645,-4965.34,0.00013783,2]
[337919260,1726205460656,-852.89,0.00013783,2]
[337919262,1726205460666,-4334.19,0.00013783,2]
[337919265,1726205460676,-500.0,0.00013783,2]
[337919267,1726205460687,-1899.55,0.00013783,2]
[337919269,1726205460697,-3607.53,0.00013783,2]
[337919271,1726205460708,-1188.3,0.00013783,2]
[337919273,1726205460718,-1626.76,0.00013783,2]
[337919275,1726205460729,-670.13,0.00013783,2]
[337919277,1726205460739,-2872.91,0.00013783,2]
[337919279,1726205460751,-1409.64,0.00013783,2]
[337919281,1726205460761,-2623.76,0.00013783,2]
[337919283,1726205460771,-2193.5,0.00013783,2]
[337919285,1726205460781,-151.0,0.00013783,2]